Cogmind - Beta 16 @@@ ROGUE MODE // 2025.11.28 @ 19:34:56 Player: Jamba27 Result: Destroyed by Y-72 Warden with Quantum Rifle Performance ------------- Evolutions (9) 4500 Regions Visited (20) 4000 Robots Destroyed (164) 820 Value Destroyed (7086) 7086 Prototype IDs (33) 660 Alien Tech Used (0) 0 Bonus (6047) 6047 TOTAL SCORE: 23113 Bonus ------- High Alert Combat Kills 314 Follower Combat Kills 2503 Entered Garrisons 1000 Used RIF Installer 2000 Aligned with FarCom 300 Friendly Fire -70 Cogmind --------- Core Integrity 0/1600 Matter 52/300 Energy 60/100 System Corruption 6% Temperature Cool (9) Movement Core (50) Location -1/Access Parts ------- > --- POWER (2) -------- (None) > --- PROPULSION (10) -- (None) > --- UTILITY (10) ----- (None) > --- WEAPON (3) ------- (None) > --- INVENTORY (5) ---- Micro Antimatter Reactor Micro Antimatter Reactor Advanced Sensor Array Advanced Force Field Improved Remote Datajack Peak State ------------ > --- POWER ------------ Micro Antimatter Reactor Micro Antimatter Reactor > --- PROPULSION ------- Q-thruster Cooled Impulse Thruster Impulse Thruster Array Impulse Thruster Array Impulse Thruster Array Impulse Thruster Array > --- UTILITY ---------- Large Storage Unit Enhanced Optical Array Advanced Signal Interpreter Improved Transmission Jammer ECM Suite System Shield Relay Coupler [Swarmer] Relay Coupler [Sentry] Relay Coupler [Hunter] Relay Coupler [Heavy] > --- WEAPON ----------- Flail > --- INVENTORY -------- Micro Antimatter Reactor Micro Antimatter Reactor Micro Antimatter Reactor Xenon Bombardment Thruster Advanced Sensor Array Advanced Force Field Relay Coupler [Hunter] Nova Cannon Enhanced Nova Cannon Improved Remote Datajack Improved Remote Datajack Improved Plasma Cutter [Rating: 146] Favorites ----------- Power Micro Nuclear Core Engine Improved Deuterium Engine Power Core Micro Nuclear Core Reactor Micro Antimatter Reactor Propulsion Armored Treads Treads Armored Treads Leg Aluminum Leg Wheel Armored Huge Wheel Hover Unit Antigrav Array Flight Unit Impulse Thruster Array Utility Huge Storage Unit Device Transmission Jammer Storage Huge Storage Unit Processor Signal Interpreter Hackware Hacking Suite Protection Improved Medium Armor Plating Weapon Plasma Cannon Energy Gun Pulse Rifle Energy Cannon Plasma Cannon Ballistic Gun Gauss Rifle Ballistic Cannon Hardcell Cannon Launcher Rocket Launcher Special Weapon Remote Datajack Impact Weapon Impact Mace Slashing Weapon Makeshift Axe Special Melee Weapon Improved Datajack Build | -11 -10 -10 -10 -9 -8 -8 -8 -7 -7 -7 -6 -6 -6 -6 -5 -5 -4 -3 -2 -1 ------- Run | Yrd Mat Min Exi Min Mat Gar Mat Fac Gar Fac Fac Gar Fac Gar Fac Gar Fac Res Res Acc Slots Evolved 18 | . . . . . 4 . . 2 . . 2 . . . 2 . 2 2 2 2 Power 1 | . . . . . . . . . . . . . . . . . . 1 . . Propulsion 8 | . . . . . 1 . . 1 . . . . . . 1 . . 1 2 2 Utility 8 | . . . . . 2 . . 1 . . 2 . . . 1 . 2 . . . Weapon 1 | . . . . . 1 . . . . . . . . . . . . . . . Parts Attached 160 | 6 5 3 2 5 22 3 6 10 2 22 2 1 . 2 3 . 26 20 10 10 Power 20 | 1 1 2 . . 1 . 2 1 . 4 . . . . . . 2 1 2 3 Engine 7 | 1 1 1 . . . . 1 1 . 2 . . . . . . . . . . Core 7 | . . 1 . . 1 . 1 . . 2 . . . . . . 1 1 . . Reactor 6 | . . . . . . . . . . . . . . . . . 1 . 2 3 Propulsion 41 | 2 . . . 2 3 1 1 2 . 6 1 . . 2 . . 6 9 5 1 Treads 22 | 2 . . . . 3 1 1 2 . 6 1 . . 2 . . 4 . . . Leg 5 | . . . . 2 . . . . . . . . . . . . 2 1 . . Wheel 1 | . . . . . . . . . . . . . . . . . . 1 . . Hover 1 | . . . . . . . . . . . . . . . . . . 1 . . Flight 12 | . . . . . . . . . . . . . . . . . . 6 5 1 Utility 54 | 1 2 . 1 . 6 1 1 3 1 8 1 . . . 3 . 14 7 3 2 Device 21 | . 1 . . . 3 1 1 1 . 4 1 . . . . . 3 2 2 2 Storage 4 | 1 . . 1 . 1 . . . . . . . . . . . . 1 . . Processor 7 | . 1 . . . . . . . . 2 . . . . . . 2 2 . . Hackware 17 | . . . . . 1 . . . 1 1 . . . . 3 . 8 2 1 . Protection 5 | . . . . . 1 . . 2 . 1 . . . . . . 1 . . . Artifact . | . . . . . . . . . . . . . . . . . . . . . Weapon 45 | 2 2 1 1 3 12 1 2 4 1 4 . 1 . . . . 4 3 . 4 Energy Gun 10 | 2 . . . 1 5 . 1 . . 1 . . . . . . . . . . Energy Cannon 13 | . 1 . . . 3 1 . 2 1 1 . . . . . . 1 1 . 2 Ballistic Gun 4 | . . . . 1 3 . . . . . . . . . . . . . . . Ballistic Cannon 1 | . . . . . . . . . . . . . . . . . 1 . . . Launcher 2 | . . . . 1 . . . . . . . 1 . . . . . . . . Special Weapon 9 | . 1 . . . 1 . . 1 . 2 . . . . . . 2 1 . 1 Impact Weapon 2 | . . . . . . . . 1 . . . . . . . . . 1 . . Slashing Weapon 2 | . . 1 . . . . . . . . . . . . . . . . . 1 Piercing Weapon . | . . . . . . . . . . . . . . . . . . . . . Special Melee Weapon 2 | . . . 1 . . . 1 . . . . . . . . . . . . . Unidentified Prototypes 6 | . . . . . 1 . 1 1 . 1 . . . . . . . 1 1 . Parts Lost 71 | . . . . 2 4 2 . . 3 9 . 1 . 2 . . 25 1 8 14 Power 8 | . . . . . . . . . 1 1 . . . . . . 2 . 3 1 Propulsion 23 | . . . . 2 1 . . . . 3 . . . 2 . . 8 . 2 5 Utility 21 | . . . . . 1 . . . 2 3 . . . . . . 7 1 2 5 Weapon 19 | . . . . . 2 2 . . . 2 . 1 . . . . 8 . 1 3 Highest Loss Streak 14 | . . . . 2 4 2 . . 2 5 . 1 . 2 . . 9 1 8 14 To Critical Strikes 2 | . . . . . . . . . . . . . . . . . 2 . . . Average Backups 17 | 2 6 8 5 3 12 19 19 19 20 19 19 21 24 23 22 22 21 5 10 12 Power . | . 1 1 . . . 1 . 1 1 . 1 1 1 1 1 1 1 . . 3 Propulsion 1 | 1 1 . . . 2 4 3 1 1 . 2 2 3 1 . . 1 . 2 1 Utility 10 | . 1 3 3 2 6 9 11 12 12 12 13 15 18 18 17 16 13 3 4 3 Weapon 2 | . 1 2 2 1 3 3 3 4 4 4 2 1 1 1 1 2 1 . 1 1 Tool/Special . | . . . . . . . . . . . . . . . . . . . . . Unused Backups 44 | . 1 1 4 . . 5 7 5 . 4 . 2 . 4 . 1 3 1 . 6 Power 7 | . . . 1 . . . 1 . . 1 . . . . . . 1 . . 3 Propulsion 6 | . 1 1 . . . . 3 . . . . . . . . . . 1 . . Utility 23 | . . . 2 . . 5 2 3 . 1 . 2 . 4 . 1 2 . . 1 Weapon 4 | . . . 1 . . . . 2 . 1 . . . . . . . . . . Tool/Special 4 | . . . . . . . 1 . . 1 . . . . . . . . . 2 Average Slot Usage (%) 86 | . 100 99 100 99 91 99 99 98 98 92 75 66 66 64 64 64 70 65 73 63 Engine 2 | . 14 7 . . . . 3 4 7 4 . . . . . . . . . . Core 4 | . . 6 14 14 9 9 5 2 . 2 6 6 6 6 5 5 3 3 3 . Treads 23 | . 28 28 28 . 22 27 26 29 30 26 26 26 26 24 29 29 19 . . . Leg 1 | . . . . 26 2 . . . . . . . . . . . . . . . Device 10 | . 12 . . . 7 13 18 15 15 17 12 6 6 6 5 5 13 . 2 5 Storage 7 | . 14 14 14 14 9 9 9 7 7 7 6 6 6 6 5 5 4 1 4 3 Processor 5 | . 1 14 14 14 9 4 . . . 9 3 . . . . . 5 8 8 7 Hackware 5 | . . . . . 8 9 9 7 9 1 . . . . . . 5 31 25 17 Energy Gun 3 | . 14 4 . . 11 . 6 4 4 . . 2 6 6 5 5 2 . . . Energy Cannon 9 | . 13 14 14 . 2 14 11 10 10 14 13 10 6 6 5 5 5 . . . Ballistic Gun 1 | . . . . 5 6 9 . . . . . . . . . . . . . . Special Weapon 1 | . . . . . 1 . . 3 5 5 . . . . . . 1 2 3 . Impact Weapon 1 | . . . . . . . . . . 1 6 5 6 6 5 5 2 2 4 3 Slashing Weapon 1 | . . 9 5 14 1 . . . . . . . . . . . . . . . Special Melee Weapon 1 | . . . 8 . . . 6 3 . . . . . . . . . . . . Peak Build Rating 146 | 6 7 13 17 18 42 43 47 57 56 58 90 91 91 94 102 98 120 109 140 146 Average Rating 58 | 5 7 10 12 17 33 41 42 54 53 53 75 90 91 92 97 97 87 86 121 121 On Entrance 54 | . 6 7 13 17 18 42 42 47 56 42 56 90 91 91 94 98 98 35 106 92 Avg Prop Armor Cover (%) 5 | . . . . . . . . . . . . . . 4 3 3 3 9 12 7 Naked Turns 12 | . . . . . . . . . . . . . . . . . . . . 12 Heaviest Build 186 | 13 16 16 21 22 109 107 107 116 116 113 182 186 179 179 179 179 180 33 52 41 Greatest Support 150 | 40 40 40 40 40 60 60 60 80 80 104 88 88 88 98 106 106 150 48 72 90 Greatest Overweight (x) 30 | 3 . . . 7 2 1 1 1 1 2 2 2 2 3 1 1 30 1 . 6 Average Overweight (x) . | . . . . 1 . 1 1 1 1 . 1 2 2 1 1 1 1 . . . Largest Inventory Capacity 25 | 8 8 8 10 10 25 25 25 25 25 25 25 25 25 25 25 25 25 15 15 15 Average Capacity 21 | 7 8 8 8 10 21 25 25 25 25 25 25 25 25 25 25 25 24 8 15 14 Most Carried 25 | 5 8 8 8 10 25 25 25 25 25 25 25 25 25 25 24 23 25 12 15 15 Average Carried 20 | 2 6 7 7 8 17 24 24 24 25 24 23 22 24 24 22 22 21 5 12 11 Final Capacity 25 | 8 8 8 10 10 25 25 25 25 25 25 25 25 25 25 25 25 5 15 15 5 Final Carried 25 | 5 8 8 8 10 25 25 25 25 25 25 22 25 25 25 23 23 5 12 15 5 Class Distribution -------------------- 28% | Mutant 24% | Bothacker-Mutant 17% | Bothacker-Skirmisher 15% | Skirmisher 9% | Botlord-Mutant Dominant Class ---------------- Mutant | -10/Materials Mutant | -10/Mines Mutant | -10/Exiles Mutant | -9/Mines Skirmisher | -8/Materials Skirmisher | -8/Garrison Mutant | -8/Materials Mutant | -7/Factory Bothacker-Skirmisher | -7/Garrison Bothacker-Skirmisher | -7/Factory Bothacker-Mutant | -6/Factory Bothacker-Mutant | -6/Garrison Bothacker-Mutant | -6/Factory Bothacker-Mutant | -6/Garrison Bothacker-Mutant | -5/Factory Bothacker-Mutant | -5/Garrison Botlord-Mutant | -4/Factory Bothacker-Mutant | -3/Research Bothacker-Mutant | -2/Research Bothacker-Sprinter | -1/Access Resources | -11 -10 -10 -10 -9 -8 -8 -8 -7 -7 -7 -6 -6 -6 -6 -5 -5 -4 -3 -2 -1 ----------- Run | Yrd Mat Min Exi Min Mat Gar Mat Fac Gar Fac Fac Gar Fac Gar Fac Gar Fac Res Res Acc Matter Collected 3260 | 243 147 160 . 114 296 359 171 190 40 470 . 126 . 137 42 7 454 299 . 5 Remotely . | . . . . . . . . . . . . . . . . . . . . . Salvage Created 6429 | 25 243 432 . 160 431 683 980 500 321 964 . 285 54 318 41 6 975 11 . . Parts 326 | 4 11 27 . 11 33 32 49 31 13 38 . 8 . 21 6 . 42 . . . Haulers Intercepted 8 | . . . . . 1 . 3 1 . 2 . . . . . . 1 . . . Recyclers Shooed 3 | . . . . . . . . . . . . . . . . . 3 . . . Parts Field Recycled . | . . . . . . . . . . . . . . . . . . . . . Retrieved Matter . | . . . . . . . . . . . . . . . . . . . . . Parts Self-Destructed . | . . . . . . . . . . . . . . . . . . . . . Prevented . | . . . . . . . . . . . . . . . . . . . . . Parts Restored 1 | . . . . . . . . 1 . . . . . . . . . . . . Broken 1 | . . . . . . . . 1 . . . . . . . . . . . . Kills | -11 -10 -10 -10 -9 -8 -8 -8 -7 -7 -7 -6 -6 -6 -6 -5 -5 -4 -3 -2 -1 ------- Run | Yrd Mat Min Exi Min Mat Gar Mat Fac Gar Fac Fac Gar Fac Gar Fac Gar Fac Res Res Acc Combat Hostiles Destroyed 128 | . 7 14 . 5 8 13 14 9 10 16 . 5 1 7 . 1 18 . . . Melee 9 | . . 8 . . . . . . . . . . . . . . 1 . . . Guns 41 | . 4 4 . . 5 9 6 2 3 . . 3 . 3 . 1 1 . . . Cannons 56 | . 3 2 . . 3 4 7 7 7 13 . . . 2 . . 8 . . . AOE 11 | . . . . 5 . . . . . . . . . . . . 6 . . . Classes Destroyed 18 | 1 3 1 . 1 5 3 2 1 . . . . . . . . 1 . . . Worker 5 | . . . . . . . 1 . . . . . . . . . 4 . . . Builder 7 | . . . . . 1 . . . . . . . . . 1 . 4 1 . . Tunneler 1 | 1 . . . . . . . . . . . . . . . . . . . . Hauler 8 | . . . . . 1 . 3 1 . 2 . . . . . . 1 . . . Recycler 2 | . . . . . . . 1 . . 1 . . . . . . . . . . Mechanic 1 | . . . . . . . . . . . . . . . . . 1 . . . Operator 4 | . . . . . 1 . 2 . . 1 . . . . . . . . . . Watcher 9 | . 2 . . . 1 . 2 2 . . . . . 1 1 . . . . . Swarmer 27 | . 3 6 . . 2 . 3 2 7 . . 1 . . . 1 2 . . . Grunt 52 | . 4 6 . 5 . 9 5 3 2 8 . 2 1 1 . . 6 . . . Brawler 3 | . . . . . . 1 1 . 1 . . . . . . . . . . . Duelist 4 | . . . . . . 2 . . . 1 . . . . . . 1 . . . Sentry 14 | . . . . . 5 . 5 . . 1 . 2 . 1 . . . . . . Specialist 1 | . . . . . . . . 1 . . . . . . . . . . . . Hunter 5 | . . . . . 1 . . . . 2 . . . . . . 2 . . . Programmer 20 | . . . . . . 1 . 3 . 4 . . . 5 . . 7 . . . Zionite 1 | . . . . 1 . . . . . . . . . . . . . . . . Assembled 2 | . . 2 . . . . . . . . . . . . . . . . . . Best Kill Streak 9 | 1 5 4 . 5 2 9 5 2 3 4 . 1 1 3 1 1 7 1 . . Combat Bots Only 9 | . 4 4 . 5 2 9 4 2 3 3 . 1 1 3 . 1 5 . . . Max Kills in Single Turn 4 | 1 1 1 . 3 1 1 2 1 1 1 . 1 1 1 1 1 4 1 . . Gunslinging . | . . . . . . . . . . . . . . . . . . . . . Exploded 3 | . . . . 3 . . . . . . . . . . . . 2 . . . Melee 1 | . . 1 . . . . . . . . . . . . . . 1 . . . Uniques/NPCs Destroyed . | . . . . . . . . . . . . . . . . . . . . . Combat | -11 -10 -10 -10 -9 -8 -8 -8 -7 -7 -7 -6 -6 -6 -6 -5 -5 -4 -3 -2 -1 -------- Run | Yrd Mat Min Exi Min Mat Gar Mat Fac Gar Fac Fac Gar Fac Gar Fac Gar Fac Res Res Acc Hostile Shots Fired 1389 | . 29 42 . 25 102 79 63 47 69 214 18 64 18 80 . 5 246 54 76 158 Missed 463 | . 7 16 . 11 29 14 16 15 20 57 12 24 1 19 . 3 81 33 45 60 Hits 926 | . 22 26 . 14 73 65 47 32 49 157 6 40 17 61 . 2 165 21 31 98 Melee 56 | . . 1 . . . 3 1 . 3 2 . . . . . . . . . 46 Projectile 870 | . 22 25 . 14 73 62 46 32 46 155 6 40 17 61 . 2 165 21 31 52 AOE 5 | . . . . . . . . . . . . . . . . . 2 . . 3 Critical Strikes 53 | . . . . . 2 4 2 2 1 5 . . . 4 . . 9 . 1 23 Part Disruptions 2 | . . . . . . . . 1 . . . . . 1 . . . . . . Damage Taken 16578 | . 233 263 . 204 932 1057 654 793 1029 2213 44 524 . 1017 . 101 3523 430 730 2831 Core 3515 | . 74 28 . 11 84 75 99 58 87 180 12 66 . 144 . 5 709 103 153 1627 Absorbed by Shields . | . . . . . . . . . . . . . . . . . . . . . Regen/Repaired (Parts) 1091 | . . . . . . . 830 17 . 244 . . . . . . . . . . Core Remaining (%) 72 | 100 . . . 54 . . 53 . . 53 . . . 73 . 99 38 92 89 . Volleys Fired 482 | 1 24 9 . 4 32 55 61 46 34 96 . 17 . 19 1 2 67 9 . 5 Largest 3 | 2 2 2 . 1 3 3 2 2 2 2 . 2 . 2 2 2 3 1 . 1 Hottest 240 | 90 110 110 . 33 240 188 160 140 138 155 . 155 . 143 143 143 225 110 . 120 Shots Fired 843 | 2 44 17 . 4 78 106 107 77 60 155 . 31 . 39 2 4 103 9 . 5 Gun 271 | 2 20 8 . . 56 55 45 14 26 2 . 11 . 20 1 2 9 . . . Cannon 505 | . 23 9 . . 22 45 62 53 26 150 . 17 . 19 1 2 67 4 . 5 Launcher 28 | . . . . 4 . 6 . . 6 . . 3 . . . . 9 . . . Special 39 | . 1 . . . . . . 10 2 3 . . . . . . 18 5 . . Kinetic 91 | . . . . . 25 55 . . . . . . . . . . 11 . . . Thermal 682 | 2 44 17 . . 53 45 107 67 52 152 . 28 . 39 2 4 65 . . 5 Explosive 28 | . . . . 4 . 6 . . 6 . . 3 . . . . 9 . . . Electromagnetic 4 | . . . . . . . . . . . . . . . . . . 4 . . Robot Hit Streak 22 | 1 10 7 . 3 8 18 10 22 13 14 . 5 . 12 10 11 10 3 . 1 Robot Miss Streak 5 | 1 3 2 . 1 4 2 2 3 3 5 . 2 . 4 . 1 5 2 . 3 Penetration Max 1 | . . . . . . 1 . . . . . . . . . . . . . . Secondary Targets 1 | . . . . . . 1 . . . . . . . . . . . . . . Max Gunslinging Chain 1 | . . . . . . 1 . . . . . . . . . . . . . . Shots Hit Robots 538 | 1 24 23 2 3 50 52 70 57 35 78 . 19 1 34 3 2 74 8 . 2 Core Hits 247 | 1 13 14 . 8 17 26 33 19 16 26 . 8 . 14 2 1 45 . . 4 Critical Kills 2 | . . . . . . . . . . . . 1 . . . . 1 . . . Critical Parts Destroyed 8 | . . . . . . . . . . 1 . 1 . 1 . . 3 2 . . Critical Strikes 27 | . 3 2 . . 3 . 4 . . 1 . 2 . 5 . . 5 2 . . Burn 14 | . 3 1 . . 2 . 4 . . . . . . 4 . . . . . . Meltdown 2 | . . . . . . . . . . . . 1 . . . . 1 . . . Blast 1 | . . . . . . . . . . . . . . . . . 1 . . . Smash 8 | . . . . . . . . . . 1 . 1 . 1 . . 3 2 . . Sever 2 | . . 1 . . 1 . . . . . . . . . . . . . . . Melee Attacks 177 | . . 35 2 . 4 . 5 4 . 4 . 21 4 17 6 12 16 17 14 16 Impact 126 | . . . . . . . . . . 4 . 21 4 17 6 12 16 17 14 15 Slashing 40 | . . 35 . . 4 . . . . . . . . . . . . . . 1 Piercing . | . . . . . . . . . . . . . . . . . . . . . Sneak Attacks 15 | . . . 2 . 1 . 4 4 . . . . 1 1 1 . . 1 . . Combat Hostiles 1 | . . . . . . . . . . . . . 1 . . . . . . . Follow-up Attacks . | . . . . . . . . . . . . . . . . . . . . . Damage Inflicted 14149 | 10 367 698 . 287 930 1217 1395 1238 725 2110 . 469 126 1040 115 35 3019 200 . 168 Guns 3556 | 10 168 76 . . 542 755 665 258 325 44 . 173 . 369 16 35 120 . . . Cannons 7063 | . 199 52 . . 231 462 730 980 400 1862 . 209 . 348 25 . 1410 76 . 79 Explosions 1288 | . . . . 287 . . . . . . . . . . . . 1001 . . . Melee 2115 | . . 570 . . 157 . . . . 168 . 87 126 323 74 . 474 111 . 25 Ramming 127 | . . . . . . . . . . 36 . . . . . . 14 13 . 64 Kinetic 1239 | . . . . . 213 755 . . . . . . . . . . 271 . . . Thermal 9328 | 10 367 128 . . 560 462 1395 1238 725 1906 . 382 . 717 41 35 1283 . . 79 Explosive 1264 | . . . . 287 . . . . . . . . . . . . 977 . . . Electromagnetic 76 | . . . . . . . . . . . . . . . . . . 76 . . Impact 1363 | . . . . . . . . . . 168 . 87 126 323 74 . 474 111 . . Slashing 752 | . . 570 . . 157 . . . . . . . . . . . . . . 25 Piercing . | . . . . . . . . . . . . . . . . . . . . . Highest Corruption 12 | . . . . . . . . . 4 6 . . . 12 . . 9 10 3 6 Average Corruption 5 | . . . . . . . . . 4 5 . . . 6 . . 6 8 2 4 Corruption Purged . | . . . . . . . . . . . . . . . . . . . . . Corruption Blocked . | . . . . . . . . . . . . . . . . . . . . . Effects 152 | . . . . . . . . . 1 79 . . . 20 . . 36 12 2 2 Message Errors 38 | . . . . . . . . . 1 19 . . . 4 . . 9 5 . . Matter Fused 46 | . . . . . . . . . . 24 . . . 9 . . 11 2 . . Heat Flow Errors 18 | . . . . . . . . . . 6 . . . 3 . . 8 . 1 . Energy Discharges 13 | . . . . . . . . . . 10 . . . 1 . . 1 1 . . Parts Rejected 2 | . . . . . . . . . . . . . . . . . 1 . . 1 Data Loss (minor) 19 | . . . . . . . . . . 12 . . . 1 . . 2 3 . 1 Data Loss (major) 4 | . . . . . . . . . . 1 . . . 1 . . 1 1 . . Misfires 7 | . . . . . . . . . . 4 . . . 1 . . 2 . . . Alerts 4 | . . . . . . . . . . 2 . . . . . . 1 . 1 . Weapon Failures 1 | . . . . . . . . . . 1 . . . . . . . . . . Overload Shots . | . . . . . . . . . . . . . . . . . . . . . Overflow Damage 933 | . . 14 . . 45 . . 5 . 98 . 48 76 118 54 . 362 111 . 2 Projectiles 121 | . . . . . . . . 5 . 2 . . . 7 . . 107 . . . Explosions 15 | . . . . . . . . . . . . . . . . . 15 . . . Melee 797 | . . 14 . . 45 . . . . 96 . 48 76 111 54 . 240 111 . 2 Knockbacks 10 | . . . . . . . . . . 1 . . 1 . . . 7 1 . . Impact 9 | . . . . . . . . . . 1 . . 1 . . . 6 1 . . Kinetic 1 | . . . . . . . . . . . . . . . . . 1 . . . Secondary . | . . . . . . . . . . . . . . . . . . . . . Self-Inflicted Damage 88 | . . . . 36 . . . . 5 . . . . . . . 11 6 . 30 Shots 3 | . . . . 1 . . . . 1 . . . . . . . 1 . . . Rammed 28 | . . . . . . . . . . 3 . . . . . . 4 3 . 18 Targets Rammed 28 | . . . . . . . . . . 3 . . . . . . 4 3 . 18 Kicked . | . . . . . . . . . . . . . . . . . . . . . Crushed . | . . . . . . . . . . . . . . . . . . . . . Highest Temperature 455 | 30 291 144 . 27 366 359 264 123 42 340 . 231 . 387 42 84 455 40 282 446 Average Temperature 98 | 18 76 68 . 20 115 136 59 39 19 104 . 74 . 129 24 45 103 21 134 151 Received Heat Transfer 2846 | . 99 68 . 84 135 630 261 120 126 771 12 132 . 123 . 12 162 30 45 36 Effects 20 | . . . . . 5 1 . . . 1 . . . 2 . . 2 . 1 8 Shutdowns 6 | . . . . . 2 . . . . . . . . 1 . . 1 . . 2 Energy Bleed 3 | . . . . . . 1 . . . 1 . . . . . . 1 . . . Interference 6 | . . . . . 3 . . . . . . . . . . . . . 1 2 Matter Decay 5 | . . . . . . . . . . . . . . 1 . . . . . 4 Siege Activations . | . . . . . . . . . . . . . . . . . . . . . Martial Activations . | . . . . . . . . . . . . . . . . . . . . . Shielding Activations . | . . . . . . . . . . . . . . . . . . . . . Robots Disrupted . | . . . . . . . . . . . . . . . . . . . . . Combat Hostiles . | . . . . . . . . . . . . . . . . . . . . . Robots Corrupted 8 | . . . . . . . . . . 3 . 1 1 . . . 2 1 . . Combat Hostiles 5 | . . . . . . . . . . 2 . 1 1 . . . 1 . . . Parts Fried 10 | . . . . . . . . . . 2 . 2 1 . . . 1 4 . . Impact Corruptions 24 | . . . . . . . . . . 4 . 1 1 5 1 . 8 4 . . Robots Melted 6 | . . . . . . . 1 . . 1 . 1 . 2 . . 1 . . . Combat Hostiles 6 | . . . . . . . 1 . . 1 . 1 . 2 . . 1 . . . Parts Melted 54 | . 6 1 . . 5 1 9 4 2 9 . 3 . 4 . . 10 . . . Heat Transferred 17063 | 25 1110 407 . . 1312 900 3189 1776 1295 2790 . 744 . 1553 87 74 1727 . . 74 Parts Sabotaged . | . . . . . . . . . . . . . . . . . . . . . Parts Stolen . | . . . . . . . . . . . . . . . . . . . . . Parts Stripped . | . . . . . . . . . . . . . . . . . . . . . Power Chain Reactions . | . . . . . . . . . . . . . . . . . . . . . Alert | -11 -10 -10 -10 -9 -8 -8 -8 -7 -7 -7 -6 -6 -6 -6 -5 -5 -4 -3 -2 -1 ------- Run | Yrd Mat Min Exi Min Mat Gar Mat Fac Gar Fac Fac Gar Fac Gar Fac Gar Fac Res Res Acc Maximum Alert Level 3 | . . . . . . 2 1 1 2 1 . 2 1 3 2 3 2 1 . . Low Security (%) 53 | 100 100 100 . 100 100 29 34 82 4 70 100 43 6 21 7 17 . 82 100 100 Level 1 29 | . . . . . . 20 65 17 38 29 . 23 93 12 86 45 54 18 . . Level 2 13 | . . . . . . 49 . . 56 . . 32 . 22 6 23 45 . . . Level 3 2 | . . . . . . . . . . . . . . 43 . 13 . . . . Level 4 . | . . . . . . . . . . . . . . . . . . . . . Level 5 . | . . . . . . . . . . . . . . . . . . . . . High Security . | . . . . . . . . . . . . . . . . . . . . . Max Security . | . . . . . . . . . . . . . . . . . . . . . Peak Influence 872 | 5 153 80 . 174 147 601 309 241 571 348 170 655 343 791 415 872 527 240 99 15 Initial 457 | . . 10 . . . 90 292 131 163 289 170 84 343 128 415 146 457 240 99 . Average 214 | . 59 16 . 49 15 358 212 64 402 156 145 286 273 534 286 403 390 165 46 1 Influence Increases 7993 | 5 335 280 . 199 348 531 572 519 418 878 . 621 58 943 128 766 986 286 87 33 Destroy 0b10 Robot/C 3880 | . 140 240 . 100 160 260 280 240 200 460 . 280 40 540 60 355 450 75 . . Destroy 0b10 Robot/NC 190 | 5 10 . . . 20 . 45 15 . 20 . . . 5 10 . 48 12 . . Destroy Leader 772 | . 34 30 . 20 74 30 100 66 20 144 . 30 10 40 22 36 92 24 . . Allied During Kill 779 | . . . . . . . . 14 . 13 . 146 5 225 26 271 72 7 . . Successful Hack 214 | . 15 . . . 6 12 29 32 14 92 . . . 14 . . . . . . Select Force Hacks 60 | . . . . . . . . 30 . 30 . . . . . . . . . . Disable Machine 435 | . 15 . . 30 30 90 15 75 . 60 . . . . . . 108 . . 12 Anti-Garrison Action 400 | . . . . . . 100 . . 50 . . 150 . 50 . 50 . . . . Destroy Structure 573 | . 1 10 . 34 13 39 28 17 14 14 . 15 3 69 10 30 180 48 27 21 Partial Spotted 51 | . 15 . . . . . . . . . . . . . . . 24 . 12 . Lose Combat Pursuer 639 | . 105 . . 15 45 . 75 30 120 45 . . . . . 24 12 120 48 . Influence Decreases 7993 | 5 308 245 62 199 209 69 883 576 100 1081 228 86 530 335 710 103 1400 566 265 33 Entered New Map 2660 | . . 17 62 . . 49 309 159 70 262 178 36 312 55 376 63 415 218 79 . Time Decay 4243 | 5 308 228 . 182 179 . 574 417 . 709 50 . 198 . 294 . 595 318 153 33 Lost Part 503 | . . . . 10 30 20 . . 30 90 . 10 . 20 . . 250 10 33 . Lost Ally 587 | . . . . 7 . . . . . 20 . 40 20 260 40 40 140 20 . . Squads Dispatched 41 | . 1 . . . 1 . 1 7 . 13 . . 2 . 2 . 8 2 1 3 Investigation 9 | . . . . . . . . 2 . 5 . . 1 . . . 1 . . . Extermination 16 | . . . . . . . . 3 . 4 . . 1 . 1 . 4 1 1 1 Reinforcement 12 | . 1 . . . 1 . 1 2 . 2 . . . . . . 2 1 . 2 Assault 3 | . . . . . . . . . . 2 . . . . . . 1 . . . Garrison 1 | . . . . . . . . . . . . . . . 1 . . . . . Intercept . | . . . . . . . . . . . . . . . . . . . . . Searches Triggered . | . . . . . . . . . . . . . . . . . . . . . Construction Impeded 1 | . . . . . . . . . . . . . . . . . 1 . . . Haulers Reinforced 2 | . . . . . . . . . . 1 . . . . . . . 1 . . Active Scanning Responses . | . . . . . . . . . . . . . . . . . . . . . Cargo Convoy Interrupts . | . . . . . . . . . . . . . . . . . . . . . Stealth | -11 -10 -10 -10 -9 -8 -8 -8 -7 -7 -7 -6 -6 -6 -6 -5 -5 -4 -3 -2 -1 --------- Run | Yrd Mat Min Exi Min Mat Gar Mat Fac Gar Fac Fac Gar Fac Gar Fac Gar Fac Res Res Acc Distress Signals 11 | . . . . . 1 . . 1 . 1 . . . . 1 . 3 2 1 1 Communications Jammed 89 | . . . . . 15 . . 3 . 48 . . . . . . . . . 23 Distress Signals 86 | . . . . . 14 . . 1 . 48 . . . . . . . . . 23 Times Spotted 359 | . 17 14 . 25 16 14 21 19 22 42 1 15 1 23 3 15 42 19 21 29 Peak Tracking Total 20 | . 4 3 . 20 4 6 4 3 6 5 1 7 1 8 2 4 8 10 12 11 Tactical Retreats 26 | . 2 . . 1 2 . 3 1 3 3 . . . . . 1 1 3 1 5 ECM-based Alert Blocks 20 | . . . . . . . . . . . . . . . . . . . . 20 Traps | -11 -10 -10 -10 -9 -8 -8 -8 -7 -7 -7 -6 -6 -6 -6 -5 -5 -4 -3 -2 -1 ------- Run | Yrd Mat Min Exi Min Mat Gar Mat Fac Gar Fac Fac Gar Fac Gar Fac Gar Fac Res Res Acc Traps Triggered 24 | . . . . . . 2 . 3 2 1 . 6 . 2 . 4 2 2 . . Indirectly . | . . . . . . . . . . . . . . . . . . . . . Trap Hack Attempts . | . . . . . . . . . . . . . . . . . . . . . Triggered . | . . . . . . . . . . . . . . . . . . . . . Disarmed . | . . . . . . . . . . . . . . . . . . . . . Reprogrammed . | . . . . . . . . . . . . . . . . . . . . . Reused . | . . . . . . . . . . . . . . . . . . . . . Traps Extracted . | . . . . . . . . . . . . . . . . . . . . . Installed . | . . . . . . . . . . . . . . . . . . . . . Triggered . | . . . . . . . . . . . . . . . . . . . . . Machines | -11 -10 -10 -10 -9 -8 -8 -8 -7 -7 -7 -6 -6 -6 -6 -5 -5 -4 -3 -2 -1 ---------- Run | Yrd Mat Min Exi Min Mat Gar Mat Fac Gar Fac Fac Gar Fac Gar Fac Gar Fac Res Res Acc Machines Disabled 35 | . 1 . . 2 2 6 1 5 . 4 . 2 . 1 . 1 9 . . 1 Max in Single Turn 2 | . 1 . . 2 1 1 1 1 . 1 . 1 . 1 . 1 2 . . 1 Garrison Access 8 | . . . . . . . . . . 2 . . . . . . . 2 2 2 Garrison Relay 5 | . . . . . . . . . 1 . . 2 . 1 . 1 . . . . Machines Repaired . | . . . . . . . . . . . . . . . . . . . . . Machines Dismantled 1 | . . . . . 1 . . . . . . . . . . . . . . . Machines Sabotaged . | . . . . . . . . . . . . . . . . . . . . . Overloaded Fab Kills . | . . . . . . . . . . . . . . . . . . . . . Hacking | -11 -10 -10 -10 -9 -8 -8 -8 -7 -7 -7 -6 -6 -6 -6 -5 -5 -4 -3 -2 -1 --------- Run | Yrd Mat Min Exi Min Mat Gar Mat Fac Gar Fac Fac Gar Fac Gar Fac Gar Fac Res Res Acc Machines Accessed 77 | . 6 . 5 . 5 1 8 6 2 15 1 1 2 1 3 . 6 8 5 2 Terminals 31 | . 5 . . . 2 1 5 1 2 6 . 1 . 1 . . 2 3 2 . Fabricators 5 | . . . . . . . . 1 . 1 . . . . 1 . 2 . . . Repair Stations 8 | . . . . . . . 1 1 . 2 . . . . . . 2 2 . . Recycling Units 9 | . 1 . . . 1 . 1 1 . 2 . . 1 . 1 . . 1 . . Scanalyzers 5 | . . . . . 1 . 1 . . 2 . . . . . . . . 1 . Garrison Access 14 | . . . . . 1 . . 2 . 2 1 . 1 . 1 . . 2 2 2 Total Hacks 250 | . 21 . 50 . 20 1 31 17 4 37 2 4 7 1 10 . 16 13 12 4 Successful 155 | . 7 . 50 . 12 1 20 11 1 17 2 . 3 1 9 . 4 5 8 4 Failed 92 | . 14 . . . 7 . 10 6 3 20 . 4 4 . 1 . 12 8 3 . Catastrophic 16 | . 2 . . . 1 . . . . 5 . . 1 . . . 3 3 1 . Database Lockouts 3 | . . . . . 1 . 1 . . . . . . . . . . . 1 . Manual 57 | . 20 . 1 . 10 . 7 4 . 7 . . . . . . 5 2 1 . Terminals 74 | . 19 . . . 8 1 10 1 4 13 . 4 . 1 . . 5 4 4 . Fabricators 20 | . . . . . . . . 4 . 2 . . . . 6 . 8 . . . Repair Stations 32 | . . . . . . . 13 6 . 7 . . . . . . 3 3 . . Recycling Units 25 | . 2 . . . 6 . 4 2 . 2 . . 5 . 2 . . 2 . . Scanalyzers 18 | . . . . . 2 . 4 . . 8 . . . . . . . . 4 . Garrison Access 31 | . . . . . 4 . . 4 . 5 2 . 2 . 2 . . 4 4 4 Terminal Hacks 68 | . 2 . 50 . 3 1 5 . 1 3 . . . 1 . . 1 . 1 . Record 50 | . . . 49 . 1 . . . . . . . . . . . . . . . Robot Schematic 1 | . . . . . . . . . . 1 . . . . . . . . . . Robot Analysis 2 | . 1 . . . . . 1 . . . . . . . . . . . . . Prototype ID Bank 1 | . . . . . 1 . . . . . . . . . . . . . . . Level Access Points 1 | . . . . . . . 1 . . . . . . . . . . . . . Emergency Access Points 1 | . . . . . . 1 . . . . . . . . . . . . . . Terminal Index 4 | . 1 . . . 1 . 1 . . 1 . . . . . . . . . . Repair Station Index 1 | . . . . . . . 1 . . . . . . . . . . . . . Registered Components 2 | . . . . . . . 1 . . 1 . . . . . . . . . . Zone Layout 2 | . . . . . . . . . . . . . . . . . 1 . 1 . Garrison Registry 1 | . . . . . . . . . . . . . . 1 . . . . . . Security Stations 1 | . . . . . . . . . 1 . . . . . . . . . . . Proto ID Catalog 1 | . . . 1 . . . . . . . . . . . . . . . . . Fabricator Hacks 12 | . . . . . . . . 1 . 2 . . . . 6 . 3 . . . Network Status 1 | . . . . . . . . 1 . . . . . . . . . . . . Load Schematic 6 | . . . . . . . . . . 1 . . . . 3 . 2 . . . Build 5 | . . . . . . . . . . 1 . . . . 3 . 1 . . . Repair Station Hacks 15 | . . . . . . . 8 3 . 4 . . . . . . . . . . Scan Component 8 | . . . . . . . 4 2 . 2 . . . . . . . . . . Repair 7 | . . . . . . . 4 1 . 2 . . . . . . . . . . Recycling Unit Hacks 10 | . 1 . . . 2 . 1 1 . 1 . . 1 . 1 . . 2 . . Report Inventory 8 | . 1 . . . 1 . 1 1 . 1 . . 1 . 1 . . 1 . . Retrieve Components 2 | . . . . . 1 . . . . . . . . . . . . 1 . . Scanalyzer 10 | . . . . . 1 . 3 . . 3 . . . . . . . . 3 . Insert Component 1 | . . . . . . . . . . 1 . . . . . . . . . . Analyze 1 | . . . . . . . . . . 1 . . . . . . . . . . Retrieve Study 8 | . . . . . 1 . 3 . . 1 . . . . . . . . 3 . Garrison Access Hacks 25 | . . . . . 2 . . 3 . 3 2 . 2 . 2 . . 3 4 4 Unlock Access 5 | . . . . . 1 . . 1 . . 1 . 1 . 1 . . . . . Seal Access 7 | . . . . . . . . . . 1 . . . . . . . 2 2 2 Coupler Status 13 | . . . . . 1 . . 2 . 2 1 . 1 . 1 . . 1 2 2 Unauthorized Hacks 15 | . 4 . . . 4 . 3 3 . 1 . . . . . . . . . . Terminals 5 | . 4 . . . 1 . . . . . . . . . . . . . . . Botnet 4 | . 3 . . . 1 . . . . . . . . . . . . . . . Operators 1 | . 1 . . . . . . . . . . . . . . . . . . . Fabricators 1 | . . . . . . . . 1 . . . . . . . . . . . . Liberate 1 | . . . . . . . . 1 . . . . . . . . . . . . Repair Stations . | . . . . . . . . . . . . . . . . . . . . . Recycling Units 7 | . . . . . 3 . 3 1 . . . . . . . . . . . . Monitor 2 | . . . . . 1 . 1 . . . . . . . . . . . . . Reject 1 | . . . . . 1 . . . . . . . . . . . . . . . Recyclers 3 | . . . . . 1 . 1 1 . . . . . . . . . . . . Mask 1 | . . . . . . . 1 . . . . . . . . . . . . . Scanalyzers . | . . . . . . . . . . . . . . . . . . . . . Garrison Access 2 | . . . . . . . . 1 . 1 . . . . . . . . . . Eject 2 | . . . . . . . . 1 . 1 . . . . . . . . . . Data Cores Recovered 3 | . . . . . 1 . 1 . . 1 . . . . . . . . . . Used . | . . . . . . . . . . . . . . . . . . . . . Hacking Detections 63 | . 6 . . . 4 . 7 5 2 13 1 1 2 1 1 . 6 8 4 2 Full Trace Events 9 | . . . . . . . . 1 1 4 . 1 1 . . . 1 . . . Feedback Events . | . . . . . . . . . . . . . . . . . . . . . Feedback Blocked . | . . . . . . . . . . . . . . . . . . . . . Robot Schematics Acquired 1 | . . . . . . . . . . 1 . . . . . . . . . . Robots Built 6 | . . . . . . . . . . . . . . . 6 . . . . . Authchips 4 | . . . . . . . . . . . . . . . 3 . 1 . . . Time 335 | . . . . . . . . . . . . . . . 201 . 134 . . . Total Robot Build Rating 24 | . . . . . . . . . . . . . . . 24 . . . . . Part Schematics Acquired 1 | . . . . . . . . . . 1 . . . . . . . . . . Parts Built 2 | . . . . . . . . . . 2 . . . . . . . . . . Authchips . | . . . . . . . . . . . . . . . . . . . . . Time 36 | . . . . . . . . . . 36 . . . . . . . . . . Total Part Build Rating 6 | . . . . . . . . . . 6 . . . . . . . . . . Part Studies Acquired 8 | . . . . . 1 . 3 . . 1 . . . . . . . . 3 . Parts Repaired 6 | . . . . . . . 4 1 . 1 . . . . . . . . . . Time 253 | . . . . . . . 158 19 . 76 . . . . . . . . . . Parts Recycled . | . . . . . . . . . . . . . . . . . . . . . Recycled Matter . | . . . . . . . . . . . . . . . . . . . . . Retrieved Matter . | . . . . . . . . . . . . . . . . . . . . . Retrieved Components 12 | . . . . . 10 . . . . . . . . . . . . 2 . . Parts Scanalyzed 1 | . . . . . . . . . . 1 . . . . . . . . . . Part Schematics Acquired 1 | . . . . . . . . . . 1 . . . . . . . . . . Parts Damaged . | . . . . . . . . . . . . . . . . . . . . . Bothacking | -11 -10 -10 -10 -9 -8 -8 -8 -7 -7 -7 -6 -6 -6 -6 -5 -5 -4 -3 -2 -1 ------------ Run | Yrd Mat Min Exi Min Mat Gar Mat Fac Gar Fac Fac Gar Fac Gar Fac Gar Fac Res Res Acc Used RIF Installer 4 | . . . . . . 1 . . . . . 1 . 1 . 1 . . . . Hotswap 1 | . . . . . . . . . . . . . . 1 . . . . . . Threat Obfuscator 1 | . . . . . . . . . . . . . . . . 1 . . . . Patrol Navigation 1 | . . . . . . . . . . . . 1 . . . . . . . . Robots Hacked 31 | . . . 1 . . . 2 8 1 2 . . . . . . 14 3 . . Non-combat 19 | . . . 1 . . . 2 8 . . . . . . . . 8 . . . Combat 12 | . . . . . . . . . 1 2 . . . . . . 6 3 . . Robot Hacks Applied 39 | . . . 1 . . . 3 12 1 3 . . . . . . 16 3 . . parse_system 6 | . . . 1 . . . . 3 . . . . . . . . 2 . . . no_distress 5 | . . . . . . . 2 2 . . . . . . . . 1 . . . find_chute 7 | . . . . . . . . 5 . . . . . . . . 2 . . . find_fabricator 2 | . . . . . . . . . . . . . . . . . 2 . . . find_recycling 3 | . . . . . . . . 2 . . . . . . . . 1 . . . ignore_parts 2 | . . . . . . . . . . . . . . . . . 2 . . . find_station 1 | . . . . . . . 1 . . . . . . . . . . . . . disrupt_area 1 | . . . . . . . . . . . . . . . . . 1 . . . overload_power 3 | . . . . . . . . . 1 1 . . . . . . 1 . . . amplify_resonance 3 | . . . . . . . . . . . . . . . . . 2 1 . . wipe_record 1 | . . . . . . . . . . 1 . . . . . . . . . . disable_weapons 1 | . . . . . . . . . . . . . . . . . 1 . . . overwrite_iff 1 | . . . . . . . . . . . . . . . . . . 1 . . formatsys_high 3 | . . . . . . . . . . 1 . . . . . . 1 1 . . Relay Couplers Released 28 | . . . . . . 4 . 4 3 4 . 7 . 3 . 3 . . . . Ejected 8 | . . . . . . . . 4 . 4 . . . . . . . . . . Machine Destruction 16 | . . . . . . . . . 3 . . 7 . 3 . 3 . . . . Programmers 4 | . . . . . . 4 . . . . . . . . . . . . . . Attached 10 | . . . . . . . . . 1 1 . . . . . . 7 . 1 . Fabnet Peak Effective % . | . . . . . . . . . . . . . . . . . . . . . Robots Rewired . | . . . . . . . . . . . . . . . . . . . . . Allies Hacked 2 | . . . . . . . . . . . . . . . 1 . 1 . . . Hacks Repelled . | . . . . . . . . . . . . . . . . . . . . . Allies | -11 -10 -10 -10 -9 -8 -8 -8 -7 -7 -7 -6 -6 -6 -6 -5 -5 -4 -3 -2 -1 -------- Run | Yrd Mat Min Exi Min Mat Gar Mat Fac Gar Fac Fac Gar Fac Gar Fac Gar Fac Res Res Acc Total Allies 20 | . . . . 4 . . . 3 . 1 . 1 . . 6 2 1 2 . . Largest Group 6 | . . . . 4 . . . 3 . 1 . 1 1 . 6 5 2 1 . . Highest-Rated Group 238 | . . . . 71 . . . 48 . 32 . 46 46 . 192 238 142 116 . . Highest-Rated Ally 142 | . . . . 31 . . . 16 . 32 . 46 46 . 32 80 142 116 . . Total Orders 26 | . . . . . . . . . . . . 1 . 13 . 8 4 . . . EXPLORE 1 | . . . . . . . . . . . . . . . . . 1 . . . RETURN 25 | . . . . . . . . . . . . 1 . 13 . 8 3 . . . Ally Attacks 502 | . . . . 21 . . . 16 . 14 . 65 3 177 12 77 100 17 . . Total Damage 11855 | . . . . 173 . . . 836 . 396 . 1174 90 3661 398 1682 2383 1062 . . Kills 99 | . . . . 3 . . . 6 . 7 . 9 1 25 3 20 18 7 . . Allies Corrupted 2 | . . . . . . . . . . . . . . . 1 . 1 . . . Allies Melted . | . . . . . . . . . . . . . . . . . . . . . Intel | -11 -10 -10 -10 -9 -8 -8 -8 -7 -7 -7 -6 -6 -6 -6 -5 -5 -4 -3 -2 -1 ------- Run | Yrd Mat Min Exi Min Mat Gar Mat Fac Gar Fac Fac Gar Fac Gar Fac Gar Fac Res Res Acc Active Infowar (turns) 9137 | . 733 . . . 497 . 1116 1581 655 3172 51 . . . . . 383 383 336 230 Optics 3622 | . . . . . . . . . . 2689 51 . . . . . . 383 336 163 Sensors 81 | . . . . . . . . . . . . . . . . . . 81 . . Seismic 733 | . 733 . . . . . . . . . . . . . . . . . . . Machine Analysis 1340 | . . . . . . . . . . 1340 . . . . . . . . . . Jamming 7479 | . . . . . 497 . 1116 1581 655 3029 49 . . . . . 383 . . 169 ECM 211 | . . . . . . . . . . . . . . . . . . . . 211 Robot Analysis Total 2 | . 1 . . . . . 1 . . . . . . . . . . . . . Derelict Logs Recovered 2 | . . 1 . 1 . . . . . . . . . . . . . . . . Drone Launches 91 | . . . . . . . . . . . . 11 . 43 . 17 20 . . . Drone Recoveries 61 | . . . . . . . . . . . . 9 . 25 . 17 10 . . . Exploration | -11 -10 -10 -10 -9 -8 -8 -8 -7 -7 -7 -6 -6 -6 -6 -5 -5 -4 -3 -2 -1 ------------- Run | Yrd Mat Min Exi Min Mat Gar Mat Fac Gar Fac Fac Gar Fac Gar Fac Gar Fac Res Res Acc Turns Passed 19993 | 112 834 1092 465 607 1094 1482 1755 1581 655 3172 118 901 408 885 643 974 1895 700 336 284 Spaces Moved 9698 | 53 362 585 284 307 386 615 610 644 256 1139 49 307 118 311 192 414 686 1030 769 581 Core 183 | 6 . . . 2 . . . . . . . . . . . . 59 110 . 6 Treads 6844 | 47 362 585 284 4 333 615 610 644 256 1139 49 307 118 311 192 414 574 . . . Legs 412 | . . . . 301 53 . . . . . . . . . . . 53 5 . . Wheels 68 | . . . . . . . . . . . . . . . . . . 68 . . Hover 108 | . . . . . . . . . . . . . . . . . . 108 . . Flight 2083 | . . . . . . . . . . . . . . . . . . 739 769 575 Fastest Speed 22 | 50 160 160 160 120 170 210 206 210 210 162 205 245 245 212 212 212 50 34 22 23 Average Speed 165 | 157 160 160 160 191 218 210 210 210 210 220 226 245 245 236 212 212 217 48 29 27 Slowest Speed 1550 | 200 160 160 160 400 260 210 219 210 210 285 245 245 245 285 212 212 1550 120 42 350 Overloaded Moves 534 | . . . . . . . . . . . . . . . . . . . 257 277 Propulsion Burnouts . | . . . . . . . . . . . . . . . . . . . . . Robots Hopped 22 | . . . . . . . . . . . . . . . . . . 6 15 1 Potential Cave-ins 28 | . . . . . . 12 . . 6 . . 10 . . . . . . . . Cave-ins Triggered 1 | . . . . . . . . . 1 . . . . . . . . . . . Exploration Rate (%) 33 | 3 46 84 62 76 27 50 56 17 35 33 1 41 3 39 3 40 21 20 31 20 Regions Visited 20 Branch Regions 3 Pre-discovered Areas 1 | . . . 1 . . . . . . . . . . . . . . . . . Known Exits Taken 13 | . 1 1 1 1 1 . 1 1 . . 1 . 1 . 1 . 1 1 1 . Unknown Exits Taken 2 | 1 . . . . . . . . . 1 . . . . . . . . . . Scrap Searched 2 | . . 1 . 1 . . . . . . . . . . . . . . . . Spaces Dug 269 | . . 10 . . . 61 15 2 67 10 . 55 3 . 5 5 5 15 9 7 Terrain Destroyed 448 | . . 10 . 43 11 79 27 3 67 10 . 55 3 . 5 5 98 15 9 8 Melee 61 | . . 10 . . . . . . . . . 2 3 . 5 5 5 15 9 7 Projectile 63 | . . . . . 10 2 27 3 . 10 . . . . . . 10 . . 1 AOE 322 | . . . . 43 . 76 . . 67 . . 53 . . . . 83 . . . Terrain Rammed . | . . . . . . . . . . . . . . . . . . . . . Walls Destroyed . | . . . . . . . . . . . . . . . . . . . . . Machines Disabled . | . . . . . . . . . . . . . . . . . . . . . Actions | -11 -10 -10 -10 -9 -8 -8 -8 -7 -7 -7 -6 -6 -6 -6 -5 -5 -4 -3 -2 -1 --------- Run | Yrd Mat Min Exi Min Mat Gar Mat Fac Gar Fac Fac Gar Fac Gar Fac Gar Fac Res Res Acc Total 12623 | 76 570 691 296 321 558 712 980 802 314 1640 59 388 230 397 416 486 985 1194 839 669 Wait 1757 | 12 172 50 . . 73 11 261 73 16 330 2 21 106 33 210 51 156 102 50 28 Move 9637 | 52 361 584 283 306 386 614 609 643 254 1138 48 306 118 310 191 413 685 1018 739 579 Hop 20 | . . . . . . . . . . . . . . . . . . 5 14 1 Pick Up 139 | 5 5 4 1 2 21 11 16 7 . 18 3 6 1 7 2 1 9 9 7 4 Fast Attach 79 | 6 . 1 . 3 12 . 3 4 1 9 . . . . . . 10 16 6 8 Attach 60 | . 1 . . 1 1 2 . 1 . 10 1 1 . 2 4 . 20 4 4 8 Detach 6 | . . . . 1 2 . . . . 1 . . . . . . 1 1 . . Swap 77 | . 5 2 3 3 12 7 8 9 3 12 1 2 . . . . 9 . 1 . Drop 119 | . 2 6 7 1 11 8 17 11 1 19 4 2 1 5 . 1 8 10 4 1 Fire 482 | 1 24 9 . 4 32 55 61 46 34 96 . 17 . 19 1 2 67 9 . 5 Melee 177 | . . 35 2 . 4 . 5 4 . 4 . 21 4 17 6 12 16 17 14 16 Ram 24 | . . . . . . . . . . . . . . . . . 3 3 . 18 Kick . | . . . . . . . . . . . . . . . . . . . . . Crush 4 | . . . . . . . . . . 3 . . . . . . 1 . . . Escape Stasis 35 | . . . . . . 4 . 4 5 . . 12 . 4 . 6 . . . . Rewire 2 | . . . . . . . . . . . . . . . 2 . . . . . Trap . | . . . . . . . . . . . . . . . . . . . . . Miscellaneous 5 | . . . . . 4 . . . . . . . . . . . . . . 1 Route ------- -11/Scrapyard -10/Materials (discovered 2 exits: *Mat / *Min) -10/Mines (discovered 3 exits: *Mat x2 / *Exi) -10/Exiles (discovered 2 exits: *Min x2) -9/Mines (discovered 2 exits: *Mat x2) -8/Materials (discovered 2 exits: *Fac / Gar) -8/Garrison -8/Materials (discovered 3 exits: *Fac x3) -7/Factory -7/Garrison -7/Factory (discovered 2 exits: *Fac x2) -6/Factory -6/Garrison -6/Factory -6/Garrison (discovered 3 exits: *Fac x3) -5/Factory -5/Garrison -4/Factory -3/Research -2/Research -1/Access History --------- Turn | Location | Event 16 | -11/Scrapyard | Discovered new exit (range 15) 113 | -11/Scrapyard | Entered Materials 316 | -10/Materials | Build established: Mutant 389 | -10/Materials | Discovered new exit (range 5) 809 | -10/Materials | Discovered new exit (range 8) 847 | -10/Materials | Identified exit to Materials 945 | -10/Materials | Identified exit to Mines 947 | -10/Materials | Entered Mines 1137 | -10/Mines | Discovered exit to Materials (range 16) 1210 | -10/Mines | Discovered exit to Materials (range 13) 1310 | -10/Mines | A weapon hastily lodged in a ceiling crevice suddenly fell to the ground 1703 | -10/Mines | Received a Rocket Launcher from a helpful Derelict 1808 | -10/Mines | Excavation squad dispatched 1808 | -10/Mines | A large section of the Mines collapsed 2032 | -10/Mines | Deemed a non-threat by the Exiles lab entrance 2032 | -10/Mines | Discovered new exit (range 5) 2037 | -10/Mines | Identified exit to Exiles 2039 | -10/Mines | Entered Exiles 2040 | -10/Exiles | Identified exit to Mines 2079 | -10/Exiles | Met 8R-AWN 2108 | -10/Exiles | Met EX-HEX 2158 | -10/Exiles | Met EX-BIN 2190 | -10/Exiles | Aligned with FarCom system 2191 | -10/Exiles | Given EX-Vault access code 2265 | -10/Exiles | Opened EX-Vault 2311 | -10/Exiles | Found Army-in-a-Box 2335 | -10/Exiles | Exiles lab attacked by MAIN.C 2416 | -10/Exiles | Learned location of Zion (-7) 2504 | -10/Exiles | Left Exiles lab with Army-in-a-Box 2504 | -10/Exiles | Entered Mines 2559 | -9/Mines | Discovered new exit (range 5) 2565 | -9/Mines | Assisted by bots powering up and referring to "LRC-V3" 2572 | -9/Mines | Identified exit to Materials 2612 | -9/Mines | Learned Materials emergency access door positions 2840 | -9/Mines | Found DCF Scrap (12 items) 2955 | -9/Mines | Received a Mining Laser from a helpful Derelict 3071 | -9/Mines | Assembled infested the area 3076 | -9/Mines | Assisted by a Guerilla fighting off Assembled 3102 | -9/Mines | Discovered exit to Materials (range 6) 3111 | -9/Mines | Entered Materials 3111 | -8/Materials | Evolved 4 slots: Propulsion x1, Utility x2, Weapon x1 3130 | -8/Materials | Lost 5 allies 3278 | -8/Materials | Lost 4 parts (1n1u2w) 3689 | -8/Materials | Discovered new exit (range 6) 3711 | -8/Materials | Identified exit to Factory 3736 | -8/Materials | Central database locked down 3750 | -8/Materials | Build established: Skirmisher 4205 | -8/Materials | Identified exit to Garrison 4205 | -8/Materials | Entered Garrison 4247 | -8/Garrison | Triggered checkpoint 4707 | -8/Garrison | Destroyed 9 combat bots 4786 | -8/Garrison | Discovered new exit (range 15) 4871 | -8/Garrison | Triggered checkpoint 5322 | -8/Garrison | Installed Relay Interface Framework 5687 | -8/Garrison | Entered Materials 5893 | -8/Materials | Central database locked down 6036 | -8/Materials | Repaired Arm. Treads+ 6075 | -8/Materials | Repaired Arm. Treads+ 6114 | -8/Materials | Repaired Arm. Treads+ 6163 | -8/Materials | Repaired Plasma Cannon 6439 | -8/Materials | Build established: Mutant 6904 | -8/Materials | Discovered exit to Factory (range 16) 7442 | -8/Materials | Entered Factory 7442 | -7/Factory | Evolved 2 slots: Propulsion x1, Utility x1 7818 | -7/Factory | Repaired Imp. Datajack 8617 | -7/Factory | Build established: Skirmisher 8753 | -7/Factory | Lost 3 allies 9011 | -7/Factory | Identified exit to Garrison 9023 | -7/Factory | Entered Garrison 9163 | -7/Garrison | Triggered checkpoint 9163 | -7/Garrison | Build established: Bothacker-Skirmisher 9195 | -7/Garrison | Learned Factory security intel 9358 | -7/Garrison | Garrison Relay disabled 9584 | -7/Garrison | Crushed by falling debris 9660 | -7/Garrison | Discovered new exit (range 10) 9678 | -7/Garrison | Entered Factory 10298 | -7/Factory | Repaired Arm. Treads+ 12004 | -7/Factory | Discovered new exit (range 20) 12301 | -7/Factory | Fabricated Arm. Treads (x2) 12401 | -7/Factory | Lost 5 parts (1p1n1u2w) 12639 | -7/Factory | Build established: Bothacker-Mutant 12739 | -7/Factory | Discovered new exit (range 20) 12850 | -7/Factory | Entered another Factory area 12850 | -6/Factory | Evolved 2 slots: Utility x2 12959 | -6/Factory | Identified exit to Garrison 12968 | -6/Factory | Entered Garrison 13198 | -6/Garrison | Expanded RIF knowledge: Patrol Navigation 13302 | -6/Garrison | Rescued a captive Derelict 13361 | -6/Garrison | Garrison Relay disabled 13546 | -6/Garrison | Spotted B-75 Beast 13561 | -6/Garrison | Allies destroyed B-75 Beast 13689 | -6/Garrison | Discovered new exit (range 13) 13768 | -6/Garrison | Triggered checkpoint 13806 | -6/Garrison | Garrison Relay disabled 13869 | -6/Garrison | Entered Factory 13869 | -6/Factory | Accompanied by 1 ally 14254 | -6/Factory | Spotted B-75 Beast 14277 | -6/Factory | Identified exit to Garrison 14277 | -6/Factory | Entered Garrison 14383 | -6/Garrison | Triggered checkpoint 14465 | -6/Garrison | Garrison Relay disabled 14622 | -6/Garrison | Spotted B-75 Beast 14638 | -6/Garrison | Allies destroyed B-75 Beast 14662 | -6/Garrison | Lost 16 allies 14775 | -6/Garrison | Discovered new exit (range 34) 14775 | -6/Garrison | Discovered new exit (range 72) 14775 | -6/Garrison | Discovered new exit (range 71) 14924 | -6/Garrison | Expanded RIF knowledge: Hotswap 14957 | -6/Garrison | System corruption reached 10% 15162 | -6/Garrison | Entered Factory 15162 | -5/Factory | Evolved 2 slots: Propulsion x1, Utility x1 15251 | -5/Factory | Fabricated Y-54 Guardian (x2) 15530 | -5/Factory | Fabricated Y-54 Guardian (x2) 15598 | -5/Factory | Fabricated Y-54 Guardian (x2) 15707 | -5/Factory | Garrison activated, responded to threat 15708 | -5/Factory | P-70 Sage assimilated allied Guardian 6a 15793 | -5/Factory | Identified exit to Garrison 15805 | -5/Factory | Entered Garrison 15805 | -5/Garrison | Accompanied by 3 allies 15965 | -5/Garrison | Triggered checkpoint 16005 | -5/Garrison | Garrison Relay disabled 16215 | -5/Garrison | Found embedded Infiltrators 16367 | -5/Garrison | Triggered checkpoint 16417 | -5/Garrison | Triggered checkpoint 16461 | -5/Garrison | Discovered new exit (range 13) 16593 | -5/Garrison | Triggered checkpoint 16639 | -5/Garrison | Expanded RIF knowledge: Threat Obfuscation 16679 | -5/Garrison | Lost 3 allies 16779 | -5/Garrison | Entered Factory 16779 | -4/Factory | Accompanied by 2 allies 16779 | -4/Factory | Evolved 2 slots: Utility x2 16944 | -4/Factory | Build established: Botlord-Mutant 17119 | -4/Factory | Lost 3 allies 17279 | -4/Factory | First assault squad dispatched 18300 | -4/Factory | Lost 9 parts (1p4n1u3w) 18585 | -4/Factory | Lost 7 parts (1p2n1u3w) 18665 | -4/Factory | Discovered new exit (range 15) 18671 | -4/Factory | Lost 4 parts (3u1w) 18672 | -4/Factory | Core integrity fell below 50% 18674 | -4/Factory | Identified exit to Research 18674 | -4/Factory | Entered Research 18674 | -3/Research | Evolved 2 slots: Power x1, Propulsion x1 18880 | -3/Research | Spotted B-86 Titan 18907 | -3/Research | Assimilated Titan 8a with formatsys_high 19359 | -3/Research | P-80 Master assimilated allied H-77 Assassin 19362 | -3/Research | System corruption reached 10% 19370 | -3/Research | Discovered new exit (range 5) 19372 | -3/Research | Identified exit to Research 19374 | -3/Research | Entered another Research area 19374 | -2/Research | Evolved 2 slots: Propulsion x2 19401 | -2/Research | Central database locked down 19415 | -2/Research | Build established: Bothacker-Mutant 19496 | -2/Research | Spotted B-90 Cyclops 19536 | -2/Research | Spotted B-90 Cyclops 19659 | -2/Research | Spotted B-90 Cyclops 19703 | -2/Research | Discovered new exit (range 18) 19709 | -2/Research | Identified exit to Access 19710 | -2/Research | Entered Access 19710 | -1/Access | Evolved 2 slots: Propulsion x2 19726 | -1/Access | Lost 8 parts (3p2n2u1w) 19826 | -1/Access | Spotted B-99 Colossus 19859 | -1/Access | Spotted B-99 Colossus 19979 | -1/Access | Core integrity fell below 50% 19990 | -1/Access | Core integrity fell below 20% 19994 | -1/Access | Destroyed by Y-72 Warden with Quantum Rifle Last Messages --------------- 19971_ Adv. Signal Interpreter severed. 19971_ Slammed into C-57 Dissector. 19974_ Destabilizing: Core damaged (-16). 19974_ Slug penetrates Terminal. 19975_ Slammed into C-57 Dissector. 19976_ Relay Coupler [Heavy] destroyed. 19976_ System corrupted by crushing effect (+2). 19977_ Slammed into C-57 Dissector. 19978_ Enh. Optical Array severed. 19978_ Slammed into C-57 Dissector. 19982_ Acquired Nova Cannon. 19984_ Nova Cannon destroyed. 19986_ Slammed into C-57 Dissector. 19988_ Slug penetrates C-57 Dissector. 19988_ C-57 Dissector destroyed. 19989_ System corrupted: Component data lost. 19989_ Acquired Dual-blade Saw. 19991_ Destroyed Adv. Reaction Control System. 19991_ Dual-blade Saw destroyed. [Achievement: 20k Club] Map ----- +----------------------------------------------------+ | ?????????????????????????# ?????????????# | | ?????????????????????????# ??????????????# | | ???????????????????????? ???????????????# | | ??????????????????????? ???????????????####+## | | ??????????????????????# ??????????????????????? | | ??????????????????????# ???????????????????????? | | ??????????????????????# BB???????????????????????? | | ??????????????????????# BB???????????????????????? | | ??????????????????????#??????????????????????????? | | ?????????????????????????????????????????????????? | | ?????????????????????????????????????????????????? | | ?????????????????????????????????????????????????? | | ?????????????????????????????????????????????????? | | ?????????????????????????????????????????????????? | | ?????????????????????????????????????????????????? | | ?????????????????????????????????????????????????? | | ?????????????????????????????????????????????????? | | ?????????????????????????????????????????????????? | | ?????????????????????????????????????????????????? | | ?????????????????????????????????????????######### | | ????????????????????????????????????????? # | | ???????????s????????????????????????????? # | | ???????????s??????????""""""""""""??????# /[[ # | | ?????????????????????##""|/! #??????# /[ # | | ???????????s?????????# ""s=!* ##?????# /[ # | | ????????????s????????# ""@ccs #?????# # | | ?????????????????????# T = s ##?????# # | | ?????????????????????# " s Y #?????# # | | ?????????????????????# #?##### ?? | | ?????????????????????# " ### ###+#### | | ??????????????? * | | ????????????? | | ????????????? ######### # # # # ## ## | | ??????????????????????##### # ################ #? | | ???????????????????????????####??????????????# #? | | ?????????????????????????????????????????????# #? | | ?????????????????????????????????????????????# #? | | ?????????????????????????????????????????????# #? | | ?????????????????????????????????????????????# #? | | ?????????????????????????????????????????????# #? | | ?????????????????????????????????????????????+ ? | | ?????????????????????????????????????????????# ? | | ?????????????????????????????????????????????## #? | | ??????????????????????????????????????????????? #? | | ??????????????????????????????????????????????? ?? | | ??????????????????????????????????????????????? ?? | | ??????????????????????????????????????????????? ?? | | ?????????????????????????????????????????????????? | | ?????????????????????????????????????????????????? | | ?????????????????????????????????????????????????? | +----------------------------------------------------+ Best States ------------- Heat Dissipation 62 Coolant Potential 65 Energy Generation 38 Energy Capacity 290 Matter Stores 300 Matter Capacity 300 Sight Range 22 Robot Scan Range 16 Terrain Scan Density 110 ECM Strength 1 Jamming Range 16 Armor Coverage 600 Weapon Cycling 15 Phase Shifting 15 Evasion (%) 84 Recoil Reduction 5 Energy Filtering 30 Offensive Hacking 10 Defensive Hacking 10 Relay Coupler Types 6 Relay Coupler Value 130 Authchip Count 5 Item Schematics ----------------- Arm. Treads | -7/Factory | Scanalyzed Robot Schematics ------------------ Y-54 Guardian | -7/Factory | Hacked Fabricated ------------ Arm. Treads | x2 | -7/Factory Y-54 Guardian | x2 | -5/Factory | Authchip Y-54 Guardian | x2 | -5/Factory | Authchip Y-54 Guardian | x2 | -5/Factory | Authchip Repaired ---------- Arm. Treads | 9% | -8/Materials Arm. Treads | 13% | -8/Materials Arm. Treads | 21% | -8/Materials Plasma Cannon | 50% | -8/Materials Imp. Datajack | 15% | -7/Factory Arm. Treads | 18% | -7/Factory Studied --------- Arm. Treads | -8/Materials | Hacked Lgt. Treads | -8/Materials | Hacked Hvy. Particle Cannon | -8/Materials | Hacked Pulse Rifle | -8/Materials | Hacked Med. Treads | -7/Factory | Hacked Impulse Thruster Array | -2/Research | Hacked Xenon Bombardment Thruster | -2/Research | Hacked Imp. Remote Datajack | -2/Research | Hacked Alien Tech Used ----------------- None Achievements -------------- 20k Club Assimilation Complete Error 47 Generalissimo Hack The Planet Hunted Infiltrator Join The Dark Side Knowing Is Half The Battle Let Me Out Of Here Mindtrick Myspace Official Business Plot Armor Satisfying Sixth Sense Tank Versatile You Will Be Upgraded Challenges ------------ None Game ------ Seed BlanketCatalystArticulator Manual? 0 Play Time 04:14:16 Cumulative 41.3 hours Start 2025.11.27 @ 11:44:08 End 2025.11.28 @ 19:34:56 Sessions 9 Manual Loads 0 Difficulty Rogue Special Mode None Game No. 33 Rogue 33 Adventurer 0 Explorer 0 Win Type - Total 0 Types 0/0/0/0/0/0/0/0/0/0 Lore% 23 Gallery% 34 Achievement% 27 Wizard Run 0 Options --------- Layout 1 ASCII 0 Keyboard 0 Movement Mouse Keybinds 0 Fullscreen 1 Font 24/Smallcaps Map View 50x35 Zoom Use 0% Tactical HUD 1 Map Filters NONE Filters NONE Steam 1 RUN: 4b3143ad-edc5-49b0-9dfa-cb80455f4ab9